{"text_format":"3","workbook":"xlsx","n_sheets":3,"sheets":["Dnevni urnik","Razporejevalnik dogodkov","Časovni intervali"],"not_rendered":{"defined_names":21},"read":"whole","date_system":"1900"}

{"sheet":"Dnevni urnik","index":0,"n_rows":76,"n_cols":13,"rows_kept":76,"merged":[[0,1,0,2],[1,1,5,2],[2,12,4,12],[3,7,4,7],[5,12,7,12],[6,1,8,2],[8,12,10,12],[9,7,10,7],[10,1,10,2],[11,12,13,12],[14,12,16,12],[15,7,16,7],[17,12,19,12],[18,1,18,2],[20,12,22,12],[21,7,22,7],[23,12,25,12],[24,1,24,2],[25,1,25,2],[26,7,27,7],[26,12,28,12],[29,12,31,12],[31,7,32,7],[32,12,34,12]]}
[null,"Dnevni urnik"]
[null,{"$f":"IFERROR(DAY(DatumskaVred.),\"\")","v":22},null,null,"Čas",{"$f":"IFERROR(UPPER(TEXT(DATE(LetoPoročila,ŠtevilkaMeseca,DanPoročila),\"d mmmm yyyy\")),\"\")","v":"22 JUNIJ 2022"},null,"PREGLED TEDNA",{"$nulls":3},"OPOMBE/SEZNAM ZADOLŽITEV"]
[{"$nulls":4},"Čas","Opis",null,{"$f":"IFERROR(TEXT(DATEVALUE(DatumskaVred.)+1,\"dddd\"),\"\")","v":"četrtek"},{"$f":"IFERROR(INDEX(RazporejevalnikDogodkov[],MATCH($H$6&\"|\"&ROW(A1),RazporejevalnikDogodkov[ENOLIČNA VREDNOST (IZRAČUNANA)],0),2),\"\")","v":""},{"$f":"IFERROR(INDEX(RazporejevalnikDogodkov[],MATCH($H$6&\"|\"&ROW(A1),RazporejevalnikDogodkov[ENOLIČNA VREDNOST (IZRAČUNANA)],0),3),\"\")","v":""},null,null,"Pojdi po oblačila v čistilnico"]
[{"$nulls":4},{"$f":"'Časovni intervali'!E3","v":"06:00:00"},{"$f":"IFERROR(INDEX(RazporejevalnikDogodkov[],MATCH(DATEVALUE(DatumskaVred.)&DnevniRazpored[[#This Row],[Čas]],PoiščiDatumInČas,0),3),\"\")","v":"Bujenje"},null,{"$f":"IFERROR(TEXT(DATEVALUE(DatumskaVred.)+1,\"d\"),\"\")","v":"23"},{"$f":"IFERROR(INDEX(RazporejevalnikDogodkov[],MATCH($H$6&\"|\"&ROW(A2),RazporejevalnikDogodkov[ENOLIČNA VREDNOST (IZRAČUNANA)],0),2),\"\")","v":"06:30:00"},{"$f":"IFERROR(INDEX(RazporejevalnikDogodkov[],MATCH($H$6&\"|\"&ROW(A2),RazporejevalnikDogodkov[ENOLIČNA VREDNOST (IZRAČUNANA)],0),3),\"\")","v":"Zajtrk"}]
[{"$nulls":4},{"$f":"'Časovni intervali'!E4","v":"06:15:00"},{"$f":"IFERROR(INDEX(RazporejevalnikDogodkov[],MATCH(DATEVALUE(DatumskaVred.)&DnevniRazpored[[#This Row],[Čas]],PoiščiDatumInČas,0),3),\"\")","v":""},null,null,{"$f":"IFERROR(INDEX(RazporejevalnikDogodkov[],MATCH($H$6&\"|\"&ROW(A3),RazporejevalnikDogodkov[ENOLIČNA VREDNOST (IZRAČUNANA)],0),2),\"\")","v":""},{"$f":"IFERROR(INDEX(RazporejevalnikDogodkov[],MATCH($H$6&\"|\"&ROW(A3),RazporejevalnikDogodkov[ENOLIČNA VREDNOST (IZRAČUNANA)],0),3),\"\")","v":""}]
[{"$nulls":4},{"$f":"'Časovni intervali'!E5","v":"06:30:00"},{"$f":"IFERROR(INDEX(RazporejevalnikDogodkov[],MATCH(DATEVALUE(DatumskaVred.)&DnevniRazpored[[#This Row],[Čas]],PoiščiDatumInČas,0),3),\"\")","v":"Prhanje"},null,{"$f":"IFERROR(DatumskaVred.+1,\"\")","v":"2022-06-23"},{"$f":"IFERROR(INDEX(RazporejevalnikDogodkov[],MATCH($H$6&\"|\"&ROW(A4),RazporejevalnikDogodkov[ENOLIČNA VREDNOST (IZRAČUNANA)],0),2),\"\")","v":""},{"$f":"IFERROR(INDEX(RazporejevalnikDogodkov[],MATCH($H$6&\"|\"&ROW(A4),RazporejevalnikDogodkov[ENOLIČNA VREDNOST (IZRAČUNANA)],0),3),\"\")","v":""},null,null,"Pokliči podjetje za kabelske storitve"]
[null,{"$f":"IFERROR(TEXT(DatumskaVred.,\"dddd\"),\"\")","v":"sreda"},null,null,{"$f":"'Časovni intervali'!E6","v":"06:45:00"},{"$f":"IFERROR(INDEX(RazporejevalnikDogodkov[],MATCH(DATEVALUE(DatumskaVred.)&DnevniRazpored[[#This Row],[Čas]],PoiščiDatumInČas,0),3),\"\")","v":""},null,null,{"$f":"IFERROR(INDEX(RazporejevalnikDogodkov[],MATCH($H$6&\"|\"&ROW(A5),RazporejevalnikDogodkov[ENOLIČNA VREDNOST (IZRAČUNANA)],0),2),\"\")","v":""},{"$f":"IFERROR(INDEX(RazporejevalnikDogodkov[],MATCH($H$6&\"|\"&ROW(A5),RazporejevalnikDogodkov[ENOLIČNA VREDNOST (IZRAČUNANA)],0),3),\"\")","v":""}]
[{"$nulls":4},{"$f":"'Časovni intervali'!E7","v":"07:00:00"},{"$f":"IFERROR(INDEX(RazporejevalnikDogodkov[],MATCH(DATEVALUE(DatumskaVred.)&DnevniRazpored[[#This Row],[Čas]],PoiščiDatumInČas,0),3),\"\")","v":""},null,null,{"$f":"IFERROR(INDEX(RazporejevalnikDogodkov[],MATCH($H$6&\"|\"&ROW(A6),RazporejevalnikDogodkov[ENOLIČNA VREDNOST (IZRAČUNANA)],0),2),\"\")","v":""},{"$f":"IFERROR(INDEX(RazporejevalnikDogodkov[],MATCH($H$6&\"|\"&ROW(A6),RazporejevalnikDogodkov[ENOLIČNA VREDNOST (IZRAČUNANA)],0),3),\"\")","v":""}]
[{"$nulls":4},{"$f":"'Časovni intervali'!E8","v":"07:15:00"},{"$f":"IFERROR(INDEX(RazporejevalnikDogodkov[],MATCH(DATEVALUE(DatumskaVred.)&DnevniRazpored[[#This Row],[Čas]],PoiščiDatumInČas,0),3),\"\")","v":""},null,{"$f":"IFERROR(TEXT(DATEVALUE(DatumskaVred.)+2,\"dddd\"),\"\")","v":"petek"},{"$f":"IFERROR(INDEX(RazporejevalnikDogodkov[],MATCH($H$12&\"|\"&ROW(A1),RazporejevalnikDogodkov[ENOLIČNA VREDNOST (IZRAČUNANA)],0),2),\"\")","v":""},{"$f":"IFERROR(INDEX(RazporejevalnikDogodkov[],MATCH($H$12&\"|\"&ROW(A1),RazporejevalnikDogodkov[ENOLIČNA VREDNOST (IZRAČUNANA)],0),3),\"\")","v":""}]
[{"$nulls":4},{"$f":"'Časovni intervali'!E9","v":"07:30:00"},{"$f":"IFERROR(INDEX(RazporejevalnikDogodkov[],MATCH(DATEVALUE(DatumskaVred.)&DnevniRazpored[[#This Row],[Čas]],PoiščiDatumInČas,0),3),\"\")","v":"Odhod v službo"},null,{"$f":"IFERROR(TEXT(DATEVALUE(DatumskaVred.)+2,\"d\"),\"\")","v":"24"},{"$f":"IFERROR(INDEX(RazporejevalnikDogodkov[],MATCH($H$12&\"|\"&ROW(A2),RazporejevalnikDogodkov[ENOLIČNA VREDNOST (IZRAČUNANA)],0),2),\"\")","v":""},{"$f":"IFERROR(INDEX(RazporejevalnikDogodkov[],MATCH($H$12&\"|\"&ROW(A2),RazporejevalnikDogodkov[ENOLIČNA VREDNOST (IZRAČUNANA)],0),3),\"\")","v":""}]
[null,"PRIKAZ URNIKA",null,null,{"$f":"'Časovni intervali'!E10","v":"07:45:00"},{"$f":"IFERROR(INDEX(RazporejevalnikDogodkov[],MATCH(DATEVALUE(DatumskaVred.)&DnevniRazpored[[#This Row],[Čas]],PoiščiDatumInČas,0),3),\"\")","v":""},null,null,{"$f":"IFERROR(INDEX(RazporejevalnikDogodkov[],MATCH($H$12&\"|\"&ROW(A3),RazporejevalnikDogodkov[ENOLIČNA VREDNOST (IZRAČUNANA)],0),2),\"\")","v":""},{"$f":"IFERROR(INDEX(RazporejevalnikDogodkov[],MATCH($H$12&\"|\"&ROW(A3),RazporejevalnikDogodkov[ENOLIČNA VREDNOST (IZRAČUNANA)],0),3),\"\")","v":""}]
[{"$nulls":4},{"$f":"'Časovni intervali'!E11","v":"08:00:00"},{"$f":"IFERROR(INDEX(RazporejevalnikDogodkov[],MATCH(DATEVALUE(DatumskaVred.)&DnevniRazpored[[#This Row],[Čas]],PoiščiDatumInČas,0),3),\"\")","v":"Začetek delavne izmene"},null,{"$f":"IFERROR(DatumskaVred.+2,\"\")","v":"2022-06-24"},{"$f":"IFERROR(INDEX(RazporejevalnikDogodkov[],MATCH($H$12&\"|\"&ROW(A4),RazporejevalnikDogodkov[ENOLIČNA VREDNOST (IZRAČUNANA)],0),2),\"\")","v":""},{"$f":"IFERROR(INDEX(RazporejevalnikDogodkov[],MATCH($H$12&\"|\"&ROW(A4),RazporejevalnikDogodkov[ENOLIČNA VREDNOST (IZRAČUNANA)],0),3),\"\")","v":""}]
[null,"Leto",null,null,{"$f":"'Časovni intervali'!E12","v":"08:15:00"},{"$f":"IFERROR(INDEX(RazporejevalnikDogodkov[],MATCH(DATEVALUE(DatumskaVred.)&DnevniRazpored[[#This Row],[Čas]],PoiščiDatumInČas,0),3),\"\")","v":""},null,null,{"$f":"IFERROR(INDEX(RazporejevalnikDogodkov[],MATCH($H$12&\"|\"&ROW(A5),RazporejevalnikDogodkov[ENOLIČNA VREDNOST (IZRAČUNANA)],0),2),\"\")","v":""},{"$f":"IFERROR(INDEX(RazporejevalnikDogodkov[],MATCH($H$12&\"|\"&ROW(A5),RazporejevalnikDogodkov[ENOLIČNA VREDNOST (IZRAČUNANA)],0),3),\"\")","v":""}]
[{"$nulls":4},{"$f":"'Časovni intervali'!E13","v":"08:30:00"},{"$f":"IFERROR(INDEX(RazporejevalnikDogodkov[],MATCH(DATEVALUE(DatumskaVred.)&DnevniRazpored[[#This Row],[Čas]],PoiščiDatumInČas,0),3),\"\")","v":""},null,null,{"$f":"IFERROR(INDEX(RazporejevalnikDogodkov[],MATCH($H$12&\"|\"&ROW(A6),RazporejevalnikDogodkov[ENOLIČNA VREDNOST (IZRAČUNANA)],0),2),\"\")","v":""},{"$f":"IFERROR(INDEX(RazporejevalnikDogodkov[],MATCH($H$12&\"|\"&ROW(A6),RazporejevalnikDogodkov[ENOLIČNA VREDNOST (IZRAČUNANA)],0),3),\"\")","v":""}]
[null,"Mesec",null,null,{"$f":"'Časovni intervali'!E14","v":"08:45:00"},{"$f":"IFERROR(INDEX(RazporejevalnikDogodkov[],MATCH(DATEVALUE(DatumskaVred.)&DnevniRazpored[[#This Row],[Čas]],PoiščiDatumInČas,0),3),\"\")","v":""},null,{"$f":"IFERROR(TEXT(DATEVALUE(DatumskaVred.)+3,\"dddd\"),\"\")","v":"sobota"},{"$f":"IFERROR(INDEX(RazporejevalnikDogodkov[],MATCH($H$18&\"|\"&ROW(A1),RazporejevalnikDogodkov[ENOLIČNA VREDNOST (IZRAČUNANA)],0),2),\"\")","v":""},{"$f":"IFERROR(INDEX(RazporejevalnikDogodkov[],MATCH($H$18&\"|\"&ROW(A1),RazporejevalnikDogodkov[ENOLIČNA VREDNOST (IZRAČUNANA)],0),3),\"\")","v":""}]
[{"$nulls":4},{"$f":"'Časovni intervali'!E15","v":"09:00:00"},{"$f":"IFERROR(INDEX(RazporejevalnikDogodkov[],MATCH(DATEVALUE(DatumskaVred.)&DnevniRazpored[[#This Row],[Čas]],PoiščiDatumInČas,0),3),\"\")","v":""},null,{"$f":"IFERROR(TEXT(DATEVALUE(DatumskaVred.)+3,\"d\"),\"\")","v":"25"},{"$f":"IFERROR(INDEX(RazporejevalnikDogodkov[],MATCH($H$18&\"|\"&ROW(A2),RazporejevalnikDogodkov[ENOLIČNA VREDNOST (IZRAČUNANA)],0),2),\"\")","v":""},{"$f":"IFERROR(INDEX(RazporejevalnikDogodkov[],MATCH($H$18&\"|\"&ROW(A2),RazporejevalnikDogodkov[ENOLIČNA VREDNOST (IZRAČUNANA)],0),3),\"\")","v":""}]
[null,"Dan",null,null,{"$f":"'Časovni intervali'!E16","v":"09:15:00"},{"$f":"IFERROR(INDEX(RazporejevalnikDogodkov[],MATCH(DATEVALUE(DatumskaVred.)&DnevniRazpored[[#This Row],[Čas]],PoiščiDatumInČas,0),3),\"\")","v":""},null,null,{"$f":"IFERROR(INDEX(RazporejevalnikDogodkov[],MATCH($H$18&\"|\"&ROW(A3),RazporejevalnikDogodkov[ENOLIČNA VREDNOST (IZRAČUNANA)],0),2),\"\")","v":""},{"$f":"IFERROR(INDEX(RazporejevalnikDogodkov[],MATCH($H$18&\"|\"&ROW(A3),RazporejevalnikDogodkov[ENOLIČNA VREDNOST (IZRAČUNANA)],0),3),\"\")","v":""}]
[{"$nulls":4},{"$f":"'Časovni intervali'!E17","v":"09:30:00"},{"$f":"IFERROR(INDEX(RazporejevalnikDogodkov[],MATCH(DATEVALUE(DatumskaVred.)&DnevniRazpored[[#This Row],[Čas]],PoiščiDatumInČas,0),3),\"\")","v":""},null,{"$f":"IFERROR(DatumskaVred.+3,\"\")","v":"2022-06-25"},{"$f":"IFERROR(INDEX(RazporejevalnikDogodkov[],MATCH($H$18&\"|\"&ROW(A4),RazporejevalnikDogodkov[ENOLIČNA VREDNOST (IZRAČUNANA)],0),2),\"\")","v":""},{"$f":"IFERROR(INDEX(RazporejevalnikDogodkov[],MATCH($H$18&\"|\"&ROW(A4),RazporejevalnikDogodkov[ENOLIČNA VREDNOST (IZRAČUNANA)],0),3),\"\")","v":""}]
[null,"UREJANJE URNIKA",null,null,{"$f":"'Časovni intervali'!E18","v":"09:45:00"},{"$f":"IFERROR(INDEX(RazporejevalnikDogodkov[],MATCH(DATEVALUE(DatumskaVred.)&DnevniRazpored[[#This Row],[Čas]],PoiščiDatumInČas,0),3),\"\")","v":""},null,null,{"$f":"IFERROR(INDEX(RazporejevalnikDogodkov[],MATCH($H$18&\"|\"&ROW(A5),RazporejevalnikDogodkov[ENOLIČNA VREDNOST (IZRAČUNANA)],0),2),\"\")","v":""},{"$f":"IFERROR(INDEX(RazporejevalnikDogodkov[],MATCH($H$18&\"|\"&ROW(A5),RazporejevalnikDogodkov[ENOLIČNA VREDNOST (IZRAČUNANA)],0),3),\"\")","v":""}]
[{"$nulls":4},{"$f":"'Časovni intervali'!E19","v":"10:00:00"},{"$f":"IFERROR(INDEX(RazporejevalnikDogodkov[],MATCH(DATEVALUE(DatumskaVred.)&DnevniRazpored[[#This Row],[Čas]],PoiščiDatumInČas,0),3),\"\")","v":"Odmor"},null,null,{"$f":"IFERROR(INDEX(RazporejevalnikDogodkov[],MATCH($H$18&\"|\"&ROW(A6),RazporejevalnikDogodkov[ENOLIČNA VREDNOST (IZRAČUNANA)],0),2),\"\")","v":""},{"$f":"IFERROR(INDEX(RazporejevalnikDogodkov[],MATCH($H$18&\"|\"&ROW(A6),RazporejevalnikDogodkov[ENOLIČNA VREDNOST (IZRAČUNANA)],0),3),\"\")","v":""}]
[null,"Izberite za urejanje časovnih intervalov.",null,null,{"$f":"'Časovni intervali'!E20","v":"10:15:00"},{"$f":"IFERROR(INDEX(RazporejevalnikDogodkov[],MATCH(DATEVALUE(DatumskaVred.)&DnevniRazpored[[#This Row],[Čas]],PoiščiDatumInČas,0),3),\"\")","v":""},null,{"$f":"IFERROR(TEXT(DATEVALUE(DatumskaVred.)+4,\"dddd\"),\"\")","v":"nedelja"},{"$f":"IFERROR(INDEX(RazporejevalnikDogodkov[],MATCH($H$24&\"|\"&ROW(A1),RazporejevalnikDogodkov[ENOLIČNA VREDNOST (IZRAČUNANA)],0),2),\"\")","v":""},{"$f":"IFERROR(INDEX(RazporejevalnikDogodkov[],MATCH($H$24&\"|\"&ROW(A1),RazporejevalnikDogodkov[ENOLIČNA VREDNOST (IZRAČUNANA)],0),3),\"\")","v":""}]
[{"$nulls":4},{"$f":"'Časovni intervali'!E21","v":"10:30:00"},{"$f":"IFERROR(INDEX(RazporejevalnikDogodkov[],MATCH(DATEVALUE(DatumskaVred.)&DnevniRazpored[[#This Row],[Čas]],PoiščiDatumInČas,0),3),\"\")","v":""},null,{"$f":"IFERROR(TEXT(DATEVALUE(DatumskaVred.)+4,\"d\"),\"\")","v":"26"},{"$f":"IFERROR(INDEX(RazporejevalnikDogodkov[],MATCH($H$24&\"|\"&ROW(A2),RazporejevalnikDogodkov[ENOLIČNA VREDNOST (IZRAČUNANA)],0),2),\"\")","v":""},{"$f":"IFERROR(INDEX(RazporejevalnikDogodkov[],MATCH($H$24&\"|\"&ROW(A2),RazporejevalnikDogodkov[ENOLIČNA VREDNOST (IZRAČUNANA)],0),3),\"\")","v":""}]
[null,"Kliknite za dodajanje novega dogodka.",null,null,{"$f":"'Časovni intervali'!E22","v":"10:45:00"},{"$f":"IFERROR(INDEX(RazporejevalnikDogodkov[],MATCH(DATEVALUE(DatumskaVred.)&DnevniRazpored[[#This Row],[Čas]],PoiščiDatumInČas,0),3),\"\")","v":""},null,null,{"$f":"IFERROR(INDEX(RazporejevalnikDogodkov[],MATCH($H$24&\"|\"&ROW(A3),RazporejevalnikDogodkov[ENOLIČNA VREDNOST (IZRAČUNANA)],0),2),\"\")","v":""},{"$f":"IFERROR(INDEX(RazporejevalnikDogodkov[],MATCH($H$24&\"|\"&ROW(A3),RazporejevalnikDogodkov[ENOLIČNA VREDNOST (IZRAČUNANA)],0),3),\"\")","v":""}]
[{"$nulls":4},{"$f":"'Časovni intervali'!E23","v":"11:00:00"},{"$f":"IFERROR(INDEX(RazporejevalnikDogodkov[],MATCH(DATEVALUE(DatumskaVred.)&DnevniRazpored[[#This Row],[Čas]],PoiščiDatumInČas,0),3),\"\")","v":""},null,{"$f":"IFERROR(DatumskaVred.+4,\"\")","v":"2022-06-26"},{"$f":"IFERROR(INDEX(RazporejevalnikDogodkov[],MATCH($H$24&\"|\"&ROW(A4),RazporejevalnikDogodkov[ENOLIČNA VREDNOST (IZRAČUNANA)],0),2),\"\")","v":""},{"$f":"IFERROR(INDEX(RazporejevalnikDogodkov[],MATCH($H$24&\"|\"&ROW(A4),RazporejevalnikDogodkov[ENOLIČNA VREDNOST (IZRAČUNANA)],0),3),\"\")","v":""}]
[null,"OZNAČEVANJE V URNIKU:",null,null,{"$f":"'Časovni intervali'!E24","v":"11:15:00"},{"$f":"IFERROR(INDEX(RazporejevalnikDogodkov[],MATCH(DATEVALUE(DatumskaVred.)&DnevniRazpored[[#This Row],[Čas]],PoiščiDatumInČas,0),3),\"\")","v":""},null,null,{"$f":"IFERROR(INDEX(RazporejevalnikDogodkov[],MATCH($H$24&\"|\"&ROW(A5),RazporejevalnikDogodkov[ENOLIČNA VREDNOST (IZRAČUNANA)],0),2),\"\")","v":""},{"$f":"IFERROR(INDEX(RazporejevalnikDogodkov[],MATCH($H$24&\"|\"&ROW(A5),RazporejevalnikDogodkov[ENOLIČNA VREDNOST (IZRAČUNANA)],0),3),\"\")","v":""}]
[null,"Odmor",null,null,{"$f":"'Časovni intervali'!E25","v":"11:30:00"},{"$f":"IFERROR(INDEX(RazporejevalnikDogodkov[],MATCH(DATEVALUE(DatumskaVred.)&DnevniRazpored[[#This Row],[Čas]],PoiščiDatumInČas,0),3),\"\")","v":""},null,{"$f":"IFERROR(TEXT(DATEVALUE(DatumskaVred.)+5,\"dddd\"),\"\")","v":"ponedeljek"},{"$f":"IFERROR(INDEX(RazporejevalnikDogodkov[],MATCH($H$29&\"|\"&ROW(A1),RazporejevalnikDogodkov[ENOLIČNA VREDNOST (IZRAČUNANA)],0),2),\"\")","v":""},{"$f":"IFERROR(INDEX(RazporejevalnikDogodkov[],MATCH($H$29&\"|\"&ROW(A1),RazporejevalnikDogodkov[ENOLIČNA VREDNOST (IZRAČUNANA)],0),3),\"\")","v":""}]
[{"$nulls":4},{"$f":"'Časovni intervali'!E26","v":"11:45:00"},{"$f":"IFERROR(INDEX(RazporejevalnikDogodkov[],MATCH(DATEVALUE(DatumskaVred.)&DnevniRazpored[[#This Row],[Čas]],PoiščiDatumInČas,0),3),\"\")","v":""},null,{"$f":"IFERROR(TEXT(DATEVALUE(DatumskaVred.)+5,\"d\"),\"\")","v":"27"},{"$f":"IFERROR(INDEX(RazporejevalnikDogodkov[],MATCH($H$29&\"|\"&ROW(A2),RazporejevalnikDogodkov[ENOLIČNA VREDNOST (IZRAČUNANA)],0),2),\"\")","v":""},{"$f":"IFERROR(INDEX(RazporejevalnikDogodkov[],MATCH($H$29&\"|\"&ROW(A2),RazporejevalnikDogodkov[ENOLIČNA VREDNOST (IZRAČUNANA)],0),3),\"\")","v":""}]
[{"$nulls":4},{"$f":"'Časovni intervali'!E27","v":"12:00:00"},{"$f":"IFERROR(INDEX(RazporejevalnikDogodkov[],MATCH(DATEVALUE(DatumskaVred.)&DnevniRazpored[[#This Row],[Čas]],PoiščiDatumInČas,0),3),\"\")","v":"Kosilo"},null,null,{"$f":"IFERROR(INDEX(RazporejevalnikDogodkov[],MATCH($H$29&\"|\"&ROW(A3),RazporejevalnikDogodkov[ENOLIČNA VREDNOST (IZRAČUNANA)],0),2),\"\")","v":""},{"$f":"IFERROR(INDEX(RazporejevalnikDogodkov[],MATCH($H$29&\"|\"&ROW(A3),RazporejevalnikDogodkov[ENOLIČNA VREDNOST (IZRAČUNANA)],0),3),\"\")","v":""}]
[{"$nulls":4},{"$f":"'Časovni intervali'!E28","v":"12:15:00"},{"$f":"IFERROR(INDEX(RazporejevalnikDogodkov[],MATCH(DATEVALUE(DatumskaVred.)&DnevniRazpored[[#This Row],[Čas]],PoiščiDatumInČas,0),3),\"\")","v":""},null,{"$f":"IFERROR(DatumskaVred.+5,\"\")","v":"2022-06-27"},{"$f":"IFERROR(INDEX(RazporejevalnikDogodkov[],MATCH($H$29&\"|\"&ROW(A4),RazporejevalnikDogodkov[ENOLIČNA VREDNOST (IZRAČUNANA)],0),2),\"\")","v":""},{"$f":"IFERROR(INDEX(RazporejevalnikDogodkov[],MATCH($H$29&\"|\"&ROW(A4),RazporejevalnikDogodkov[ENOLIČNA VREDNOST (IZRAČUNANA)],0),3),\"\")","v":""}]
[{"$nulls":4},{"$f":"'Časovni intervali'!E29","v":"12:30:00"},{"$f":"IFERROR(INDEX(RazporejevalnikDogodkov[],MATCH(DATEVALUE(DatumskaVred.)&DnevniRazpored[[#This Row],[Čas]],PoiščiDatumInČas,0),3),\"\")","v":""},null,null,{"$f":"IFERROR(INDEX(RazporejevalnikDogodkov[],MATCH($H$29&\"|\"&ROW(A5),RazporejevalnikDogodkov[ENOLIČNA VREDNOST (IZRAČUNANA)],0),2),\"\")","v":""},{"$f":"IFERROR(INDEX(RazporejevalnikDogodkov[],MATCH($H$29&\"|\"&ROW(A5),RazporejevalnikDogodkov[ENOLIČNA VREDNOST (IZRAČUNANA)],0),3),\"\")","v":""}]
[{"$nulls":4},{"$f":"'Časovni intervali'!E30","v":"12:45:00"},{"$f":"IFERROR(INDEX(RazporejevalnikDogodkov[],MATCH(DATEVALUE(DatumskaVred.)&DnevniRazpored[[#This Row],[Čas]],PoiščiDatumInČas,0),3),\"\")","v":""},null,{"$f":"IFERROR(TEXT(DATEVALUE(DatumskaVred.)+6,\"dddd\"),\"\")","v":"torek"},{"$f":"IFERROR(INDEX(RazporejevalnikDogodkov[],MATCH($H$34&\"|\"&ROW(A1),RazporejevalnikDogodkov[ENOLIČNA VREDNOST (IZRAČUNANA)],0),2),\"\")","v":""},{"$f":"IFERROR(INDEX(RazporejevalnikDogodkov[],MATCH($H$34&\"|\"&ROW(A1),RazporejevalnikDogodkov[ENOLIČNA VREDNOST (IZRAČUNANA)],0),3),\"\")","v":""}]
[{"$nulls":4},{"$f":"'Časovni intervali'!E31","v":"13:00:00"},{"$f":"IFERROR(INDEX(RazporejevalnikDogodkov[],MATCH(DATEVALUE(DatumskaVred.)&DnevniRazpored[[#This Row],[Čas]],PoiščiDatumInČas,0),3),\"\")","v":""},null,{"$f":"IFERROR(TEXT(DATEVALUE(DatumskaVred.)+6,\"d\"),\"\")","v":"28"},{"$f":"IFERROR(INDEX(RazporejevalnikDogodkov[],MATCH($H$34&\"|\"&ROW(A2),RazporejevalnikDogodkov[ENOLIČNA VREDNOST (IZRAČUNANA)],0),2),\"\")","v":""},{"$f":"IFERROR(INDEX(RazporejevalnikDogodkov[],MATCH($H$34&\"|\"&ROW(A2),RazporejevalnikDogodkov[ENOLIČNA VREDNOST (IZRAČUNANA)],0),3),\"\")","v":""}]
[{"$nulls":4},{"$f":"'Časovni intervali'!E32","v":"13:15:00"},{"$f":"IFERROR(INDEX(RazporejevalnikDogodkov[],MATCH(DATEVALUE(DatumskaVred.)&DnevniRazpored[[#This Row],[Čas]],PoiščiDatumInČas,0),3),\"\")","v":""},null,null,{"$f":"IFERROR(INDEX(RazporejevalnikDogodkov[],MATCH($H$34&\"|\"&ROW(A3),RazporejevalnikDogodkov[ENOLIČNA VREDNOST (IZRAČUNANA)],0),2),\"\")","v":""},{"$f":"IFERROR(INDEX(RazporejevalnikDogodkov[],MATCH($H$34&\"|\"&ROW(A3),RazporejevalnikDogodkov[ENOLIČNA VREDNOST (IZRAČUNANA)],0),3),\"\")","v":""}]
[{"$nulls":4},{"$f":"'Časovni intervali'!E33","v":"13:30:00"},{"$f":"IFERROR(INDEX(RazporejevalnikDogodkov[],MATCH(DATEVALUE(DatumskaVred.)&DnevniRazpored[[#This Row],[Čas]],PoiščiDatumInČas,0),3),\"\")","v":"Klicanje podjetja"},null,{"$f":"IFERROR(DatumskaVred.+6,\"\")","v":"2022-06-28"},{"$f":"IFERROR(INDEX(RazporejevalnikDogodkov[],MATCH($H$34&\"|\"&ROW(A4),RazporejevalnikDogodkov[ENOLIČNA VREDNOST (IZRAČUNANA)],0),2),\"\")","v":""},{"$f":"IFERROR(INDEX(RazporejevalnikDogodkov[],MATCH($H$34&\"|\"&ROW(A4),RazporejevalnikDogodkov[ENOLIČNA VREDNOST (IZRAČUNANA)],0),3),\"\")","v":""}]
[{"$nulls":4},{"$f":"'Časovni intervali'!E34","v":"13:45:00"},{"$f":"IFERROR(INDEX(RazporejevalnikDogodkov[],MATCH(DATEVALUE(DatumskaVred.)&DnevniRazpored[[#This Row],[Čas]],PoiščiDatumInČas,0),3),\"\")","v":""},null,null,{"$f":"IFERROR(INDEX(RazporejevalnikDogodkov[],MATCH($H$34&\"|\"&ROW(A5),RazporejevalnikDogodkov[ENOLIČNA VREDNOST (IZRAČUNANA)],0),2),\"\")","v":""},{"$f":"IFERROR(INDEX(RazporejevalnikDogodkov[],MATCH($H$34&\"|\"&ROW(A5),RazporejevalnikDogodkov[ENOLIČNA VREDNOST (IZRAČUNANA)],0),3),\"\")","v":""}]
[{"$nulls":4},{"$f":"'Časovni intervali'!E35","v":"14:00:00"},{"$f":"IFERROR(INDEX(RazporejevalnikDogodkov[],MATCH(DATEVALUE(DatumskaVred.)&DnevniRazpored[[#This Row],[Čas]],PoiščiDatumInČas,0),3),\"\")","v":""}]
[{"$nulls":4},{"$f":"'Časovni intervali'!E36","v":"14:15:00"},{"$f":"IFERROR(INDEX(RazporejevalnikDogodkov[],MATCH(DATEVALUE(DatumskaVred.)&DnevniRazpored[[#This Row],[Čas]],PoiščiDatumInČas,0),3),\"\")","v":""}]
[{"$nulls":4},{"$f":"'Časovni intervali'!E37","v":"14:30:00"},{"$f":"IFERROR(INDEX(RazporejevalnikDogodkov[],MATCH(DATEVALUE(DatumskaVred.)&DnevniRazpored[[#This Row],[Čas]],PoiščiDatumInČas,0),3),\"\")","v":""}]
[{"$nulls":4},{"$f":"'Časovni intervali'!E38","v":"14:45:00"},{"$f":"IFERROR(INDEX(RazporejevalnikDogodkov[],MATCH(DATEVALUE(DatumskaVred.)&DnevniRazpored[[#This Row],[Čas]],PoiščiDatumInČas,0),3),\"\")","v":""}]
[{"$nulls":4},{"$f":"'Časovni intervali'!E39","v":"15:00:00"},{"$f":"IFERROR(INDEX(RazporejevalnikDogodkov[],MATCH(DATEVALUE(DatumskaVred.)&DnevniRazpored[[#This Row],[Čas]],PoiščiDatumInČas,0),3),\"\")","v":"Odmor"}]
[{"$nulls":4},{"$f":"'Časovni intervali'!E40","v":"15:15:00"},{"$f":"IFERROR(INDEX(RazporejevalnikDogodkov[],MATCH(DATEVALUE(DatumskaVred.)&DnevniRazpored[[#This Row],[Čas]],PoiščiDatumInČas,0),3),\"\")","v":""}]
[{"$nulls":4},{"$f":"'Časovni intervali'!E41","v":"15:30:00"},{"$f":"IFERROR(INDEX(RazporejevalnikDogodkov[],MATCH(DATEVALUE(DatumskaVred.)&DnevniRazpored[[#This Row],[Čas]],PoiščiDatumInČas,0),3),\"\")","v":""}]
[{"$nulls":4},{"$f":"'Časovni intervali'!E42","v":"15:45:00"},{"$f":"IFERROR(INDEX(RazporejevalnikDogodkov[],MATCH(DATEVALUE(DatumskaVred.)&DnevniRazpored[[#This Row],[Čas]],PoiščiDatumInČas,0),3),\"\")","v":""}]
[{"$nulls":4},{"$f":"'Časovni intervali'!E43","v":"16:00:00"},{"$f":"IFERROR(INDEX(RazporejevalnikDogodkov[],MATCH(DATEVALUE(DatumskaVred.)&DnevniRazpored[[#This Row],[Čas]],PoiščiDatumInČas,0),3),\"\")","v":""}]
[{"$nulls":4},{"$f":"'Časovni intervali'!E44","v":"16:15:00"},{"$f":"IFERROR(INDEX(RazporejevalnikDogodkov[],MATCH(DATEVALUE(DatumskaVred.)&DnevniRazpored[[#This Row],[Čas]],PoiščiDatumInČas,0),3),\"\")","v":""}]
[{"$nulls":4},{"$f":"'Časovni intervali'!E45","v":"16:30:00"},{"$f":"IFERROR(INDEX(RazporejevalnikDogodkov[],MATCH(DATEVALUE(DatumskaVred.)&DnevniRazpored[[#This Row],[Čas]],PoiščiDatumInČas,0),3),\"\")","v":""}]
[{"$nulls":4},{"$f":"'Časovni intervali'!E46","v":"16:45:00"},{"$f":"IFERROR(INDEX(RazporejevalnikDogodkov[],MATCH(DATEVALUE(DatumskaVred.)&DnevniRazpored[[#This Row],[Čas]],PoiščiDatumInČas,0),3),\"\")","v":""}]
[{"$nulls":4},{"$f":"'Časovni intervali'!E47","v":"17:00:00"},{"$f":"IFERROR(INDEX(RazporejevalnikDogodkov[],MATCH(DATEVALUE(DatumskaVred.)&DnevniRazpored[[#This Row],[Čas]],PoiščiDatumInČas,0),3),\"\")","v":"Domov"}]
[{"$nulls":4},{"$f":"'Časovni intervali'!E48","v":"17:15:00"},{"$f":"IFERROR(INDEX(RazporejevalnikDogodkov[],MATCH(DATEVALUE(DatumskaVred.)&DnevniRazpored[[#This Row],[Čas]],PoiščiDatumInČas,0),3),\"\")","v":""}]
[{"$nulls":4},{"$f":"'Časovni intervali'!E49","v":"17:30:00"},{"$f":"IFERROR(INDEX(RazporejevalnikDogodkov[],MATCH(DATEVALUE(DatumskaVred.)&DnevniRazpored[[#This Row],[Čas]],PoiščiDatumInČas,0),3),\"\")","v":""}]
[{"$nulls":4},{"$f":"'Časovni intervali'!E50","v":"17:45:00"},{"$f":"IFERROR(INDEX(RazporejevalnikDogodkov[],MATCH(DATEVALUE(DatumskaVred.)&DnevniRazpored[[#This Row],[Čas]],PoiščiDatumInČas,0),3),\"\")","v":""}]
[{"$nulls":4},{"$f":"'Časovni intervali'!E51","v":"18:00:00"},{"$f":"IFERROR(INDEX(RazporejevalnikDogodkov[],MATCH(DATEVALUE(DatumskaVred.)&DnevniRazpored[[#This Row],[Čas]],PoiščiDatumInČas,0),3),\"\")","v":"Trening nogometa"}]
[{"$nulls":4},{"$f":"'Časovni intervali'!E52","v":"18:15:00"},{"$f":"IFERROR(INDEX(RazporejevalnikDogodkov[],MATCH(DATEVALUE(DatumskaVred.)&DnevniRazpored[[#This Row],[Čas]],PoiščiDatumInČas,0),3),\"\")","v":""}]
[{"$nulls":4},{"$f":"'Časovni intervali'!E53","v":"18:30:00"},{"$f":"IFERROR(INDEX(RazporejevalnikDogodkov[],MATCH(DATEVALUE(DatumskaVred.)&DnevniRazpored[[#This Row],[Čas]],PoiščiDatumInČas,0),3),\"\")","v":""}]
[{"$nulls":4},{"$f":"'Časovni intervali'!E54","v":"18:45:00"},{"$f":"IFERROR(INDEX(RazporejevalnikDogodkov[],MATCH(DATEVALUE(DatumskaVred.)&DnevniRazpored[[#This Row],[Čas]],PoiščiDatumInČas,0),3),\"\")","v":""}]
[{"$nulls":4},{"$f":"'Časovni intervali'!E55","v":"19:00:00"},{"$f":"IFERROR(INDEX(RazporejevalnikDogodkov[],MATCH(DATEVALUE(DatumskaVred.)&DnevniRazpored[[#This Row],[Čas]],PoiščiDatumInČas,0),3),\"\")","v":""}]
[{"$nulls":4},{"$f":"'Časovni intervali'!E56","v":"19:15:00"},{"$f":"IFERROR(INDEX(RazporejevalnikDogodkov[],MATCH(DATEVALUE(DatumskaVred.)&DnevniRazpored[[#This Row],[Čas]],PoiščiDatumInČas,0),3),\"\")","v":""}]
[{"$nulls":4},{"$f":"'Časovni intervali'!E57","v":"19:30:00"},{"$f":"IFERROR(INDEX(RazporejevalnikDogodkov[],MATCH(DATEVALUE(DatumskaVred.)&DnevniRazpored[[#This Row],[Čas]],PoiščiDatumInČas,0),3),\"\")","v":""}]
[{"$nulls":4},{"$f":"'Časovni intervali'!E58","v":"19:45:00"},{"$f":"IFERROR(INDEX(RazporejevalnikDogodkov[],MATCH(DATEVALUE(DatumskaVred.)&DnevniRazpored[[#This Row],[Čas]],PoiščiDatumInČas,0),3),\"\")","v":""}]
[{"$nulls":4},{"$f":"'Časovni intervali'!E59","v":"20:00:00"},{"$f":"IFERROR(INDEX(RazporejevalnikDogodkov[],MATCH(DATEVALUE(DatumskaVred.)&DnevniRazpored[[#This Row],[Čas]],PoiščiDatumInČas,0),3),\"\")","v":""}]
[{"$nulls":4},{"$f":"'Časovni intervali'!E60","v":"20:15:00"},{"$f":"IFERROR(INDEX(RazporejevalnikDogodkov[],MATCH(DATEVALUE(DatumskaVred.)&DnevniRazpored[[#This Row],[Čas]],PoiščiDatumInČas,0),3),\"\")","v":""}]
[{"$nulls":4},{"$f":"'Časovni intervali'!E61","v":"20:30:00"},{"$f":"IFERROR(INDEX(RazporejevalnikDogodkov[],MATCH(DATEVALUE(DatumskaVred.)&DnevniRazpored[[#This Row],[Čas]],PoiščiDatumInČas,0),3),\"\")","v":""}]
[{"$nulls":4},{"$f":"'Časovni intervali'!E62","v":"20:45:00"},{"$f":"IFERROR(INDEX(RazporejevalnikDogodkov[],MATCH(DATEVALUE(DatumskaVred.)&DnevniRazpored[[#This Row],[Čas]],PoiščiDatumInČas,0),3),\"\")","v":""}]
[{"$nulls":4},{"$f":"'Časovni intervali'!E63","v":"21:00:00"},{"$f":"IFERROR(INDEX(RazporejevalnikDogodkov[],MATCH(DATEVALUE(DatumskaVred.)&DnevniRazpored[[#This Row],[Čas]],PoiščiDatumInČas,0),3),\"\")","v":""}]
[{"$nulls":4},{"$f":"'Časovni intervali'!E64","v":""},{"$f":"IFERROR(INDEX(RazporejevalnikDogodkov[],MATCH(DATEVALUE(DatumskaVred.)&DnevniRazpored[[#This Row],[Čas]],PoiščiDatumInČas,0),3),\"\")","v":""}]
[{"$nulls":4},{"$f":"'Časovni intervali'!E65","v":""},{"$f":"IFERROR(INDEX(RazporejevalnikDogodkov[],MATCH(DATEVALUE(DatumskaVred.)&DnevniRazpored[[#This Row],[Čas]],PoiščiDatumInČas,0),3),\"\")","v":""}]
[{"$nulls":4},{"$f":"'Časovni intervali'!E66","v":""},{"$f":"IFERROR(INDEX(RazporejevalnikDogodkov[],MATCH(DATEVALUE(DatumskaVred.)&DnevniRazpored[[#This Row],[Čas]],PoiščiDatumInČas,0),3),\"\")","v":""}]
[{"$nulls":4},{"$f":"'Časovni intervali'!E67","v":""},{"$f":"IFERROR(INDEX(RazporejevalnikDogodkov[],MATCH(DATEVALUE(DatumskaVred.)&DnevniRazpored[[#This Row],[Čas]],PoiščiDatumInČas,0),3),\"\")","v":""}]
[{"$nulls":4},{"$f":"'Časovni intervali'!E68","v":""},{"$f":"IFERROR(INDEX(RazporejevalnikDogodkov[],MATCH(DATEVALUE(DatumskaVred.)&DnevniRazpored[[#This Row],[Čas]],PoiščiDatumInČas,0),3),\"\")","v":""}]
[{"$nulls":4},{"$f":"'Časovni intervali'!E69","v":""},{"$f":"IFERROR(INDEX(RazporejevalnikDogodkov[],MATCH(DATEVALUE(DatumskaVred.)&DnevniRazpored[[#This Row],[Čas]],PoiščiDatumInČas,0),3),\"\")","v":""}]
[{"$nulls":4},{"$f":"'Časovni intervali'!E70","v":""},{"$f":"IFERROR(INDEX(RazporejevalnikDogodkov[],MATCH(DATEVALUE(DatumskaVred.)&DnevniRazpored[[#This Row],[Čas]],PoiščiDatumInČas,0),3),\"\")","v":""}]
[{"$nulls":4},{"$f":"'Časovni intervali'!E71","v":""},{"$f":"IFERROR(INDEX(RazporejevalnikDogodkov[],MATCH(DATEVALUE(DatumskaVred.)&DnevniRazpored[[#This Row],[Čas]],PoiščiDatumInČas,0),3),\"\")","v":""}]
[{"$nulls":4},{"$f":"'Časovni intervali'!E72","v":""},{"$f":"IFERROR(INDEX(RazporejevalnikDogodkov[],MATCH(DATEVALUE(DatumskaVred.)&DnevniRazpored[[#This Row],[Čas]],PoiščiDatumInČas,0),3),\"\")","v":""}]
[{"$nulls":4},{"$f":"'Časovni intervali'!E73","v":""},{"$f":"IFERROR(INDEX(RazporejevalnikDogodkov[],MATCH(DATEVALUE(DatumskaVred.)&DnevniRazpored[[#This Row],[Čas]],PoiščiDatumInČas,0),3),\"\")","v":""}]
[{"$nulls":4},{"$f":"'Časovni intervali'!E74","v":""},{"$f":"IFERROR(INDEX(RazporejevalnikDogodkov[],MATCH(DATEVALUE(DatumskaVred.)&DnevniRazpored[[#This Row],[Čas]],PoiščiDatumInČas,0),3),\"\")","v":""}]
[{"$nulls":4},{"$f":"'Časovni intervali'!E75","v":""},{"$f":"IFERROR(INDEX(RazporejevalnikDogodkov[],MATCH(DATEVALUE(DatumskaVred.)&DnevniRazpored[[#This Row],[Čas]],PoiščiDatumInČas,0),3),\"\")","v":""}]

{"sheet":"Razporejevalnik dogodkov","index":1,"n_rows":15,"n_cols":8,"rows_kept":15,"merged":[[0,1,0,2],[1,1,4,2],[5,1,6,2],[7,1,7,2]]}
[null,"Razporejevalnik dogodkov"]
[null,{"$f":"DAY(DatumskaVred.)","v":22},null,null,"DATUM","ČAS","OPIS","ENOLIČNA VREDNOST (IZRAČUNANA)"]
[{"$nulls":4},{"$f":"TODAY()","v":"2022-06-22"},"06:00:00","Bujenje",{"$f":"RazporejevalnikDogodkov[[#This Row],[DATUM]]&\"|\"&COUNTIF($E$3:E3,E3)","v":"44734|1"}]
[{"$nulls":4},{"$f":"TODAY()","v":"2022-06-22"},"06:30:00","Prhanje",{"$f":"RazporejevalnikDogodkov[[#This Row],[DATUM]]&\"|\"&COUNTIF($E$3:E4,E4)","v":"44734|2"}]
[{"$nulls":4},"2022-06-22","07:30:00","Odhod v službo",{"$f":"RazporejevalnikDogodkov[[#This Row],[DATUM]]&\"|\"&COUNTIF($E$3:E5,E5)","v":"44734|3"}]
[null,{"$f":"TEXT(DatumskaVred.,\"dddd\")","v":"sreda"},null,null,"2022-06-22","08:00:00","Začetek delavne izmene",{"$f":"RazporejevalnikDogodkov[[#This Row],[DATUM]]&\"|\"&COUNTIF($E$3:E6,E6)","v":"44734|4"}]
[{"$nulls":4},"2022-06-22","10:00:00","Odmor",{"$f":"RazporejevalnikDogodkov[[#This Row],[DATUM]]&\"|\"&COUNTIF($E$3:E7,E7)","v":"44734|5"}]
[null,{"$f":"DatumskaVred.","v":"22 JUNIJ 2022"},null,null,"2022-06-22","12:00:00","Kosilo",{"$f":"RazporejevalnikDogodkov[[#This Row],[DATUM]]&\"|\"&COUNTIF($E$3:E8,E8)","v":"44734|6"}]
[{"$nulls":4},"2022-06-22","13:00:00","Vrnitev v službo",{"$f":"RazporejevalnikDogodkov[[#This Row],[DATUM]]&\"|\"&COUNTIF($E$3:E9,E9)","v":"44734|7"}]
[null,"Izberite za urejanje časovnih intervalov.",null,null,"2022-06-22","13:30:00","Klicanje podjetja",{"$f":"RazporejevalnikDogodkov[[#This Row],[DATUM]]&\"|\"&COUNTIF($E$3:E10,E10)","v":"44734|8"}]
[{"$nulls":4},"2022-06-22","15:00:00","Odmor",{"$f":"RazporejevalnikDogodkov[[#This Row],[DATUM]]&\"|\"&COUNTIF($E$3:E11,E11)","v":"44734|9"}]
[null,"Izberite za prikaz dnevnega urnika",null,null,"2022-06-22","17:00:00","Domov",{"$f":"RazporejevalnikDogodkov[[#This Row],[DATUM]]&\"|\"&COUNTIF($E$3:E12,E12)","v":"44734|10"}]
[{"$nulls":4},"2022-06-22","18:00:00","Trening nogometa",{"$f":"RazporejevalnikDogodkov[[#This Row],[DATUM]]&\"|\"&COUNTIF($E$3:E13,E13)","v":"44734|11"}]
[{"$nulls":4},{"$f":"TODAY()+1","v":"2022-06-23"},"06:30:00","Zajtrk",{"$f":"RazporejevalnikDogodkov[[#This Row],[DATUM]]&\"|\"&COUNTIF($E$3:E15,E14)","v":"44735|2"}]
[{"$nulls":4},{"$f":"TODAY()+1","v":"2022-06-23"},"07:30:00","Odhod v službo",{"$f":"RazporejevalnikDogodkov[[#This Row],[DATUM]]&\"|\"&COUNTIF($E$3:E15,E15)","v":"44735|2"}]

{"sheet":"Časovni intervali","index":2,"n_rows":75,"n_cols":5,"rows_kept":75,"merged":[[0,1,0,2],[1,1,1,2],[9,1,9,2]]}
[null,"Časovni intervali"]
[null,"UREJANJE TABELE ČASA",null,null,"Ura"]
[{"$nulls":4},{"$f":"Čas_začetka","v":"06:00:00"}]
[null,"Čas začetka","06:00:00",null,{"$f":"IFERROR(IF($E3+Prirastek>ČasKonca,\"\",$E3+Prirastek),\"\")","v":"06:15:00"}]
[{"$nulls":4},"06:30:00"]
[null,"Interval","15 min",null,"06:45:00"]
[{"$nulls":4},"07:00:00"]
[null,"Čas konca","21:00:00",null,"07:15:00"]
[{"$nulls":4},"07:30:00"]
[null,"PRIKAZ URNIKA",null,null,"07:45:00"]
[{"$nulls":4},"08:00:00"]
[null,"Izberite za prikaz dnevnega urnika",null,null,"08:15:00"]
[{"$nulls":4},"08:30:00"]
[null,"Kliknite za dodajanje novega dogodka.",null,null,"08:45:00"]
[{"$nulls":4},"09:00:00"]
[{"$nulls":4},"09:15:00"]
[{"$nulls":4},"09:30:00"]
[{"$nulls":4},"09:45:00"]
[{"$nulls":4},"10:00:00"]
[{"$nulls":4},"10:15:00"]
[{"$nulls":4},"10:30:00"]
[{"$nulls":4},"10:45:00"]
[{"$nulls":4},"11:00:00"]
[{"$nulls":4},"11:15:00"]
[{"$nulls":4},"11:30:00"]
[{"$nulls":4},"11:45:00"]
[{"$nulls":4},"12:00:00"]
[{"$nulls":4},"12:15:00"]
[{"$nulls":4},"12:30:00"]
[{"$nulls":4},"12:45:00"]
[{"$nulls":4},"13:00:00"]
[{"$nulls":4},"13:15:00"]
[{"$nulls":4},"13:30:00"]
[{"$nulls":4},"13:45:00"]
[{"$nulls":4},"14:00:00"]
[{"$nulls":4},{"$f":"IFERROR(IF($E35+Prirastek>ČasKonca,\"\",$E35+Prirastek),\"\")","v":"14:15:00"}]
[{"$nulls":4},"14:30:00"]
[{"$nulls":4},"14:45:00"]
[{"$nulls":4},"15:00:00"]
[{"$nulls":4},"15:15:00"]
[{"$nulls":4},"15:30:00"]
[{"$nulls":4},"15:45:00"]
[{"$nulls":4},"16:00:00"]
[{"$nulls":4},"16:15:00"]
[{"$nulls":4},"16:30:00"]
[{"$nulls":4},"16:45:00"]
[{"$nulls":4},"17:00:00"]
[{"$nulls":4},"17:15:00"]
[{"$nulls":4},"17:30:00"]
[{"$nulls":4},"17:45:00"]
[{"$nulls":4},"18:00:00"]
[{"$nulls":4},"18:15:00"]
[{"$nulls":4},"18:30:00"]
[{"$nulls":4},"18:45:00"]
[{"$nulls":4},"19:00:00"]
[{"$nulls":4},"19:15:00"]
[{"$nulls":4},"19:30:00"]
[{"$nulls":4},"19:45:00"]
[{"$nulls":4},"20:00:00"]
[{"$nulls":4},"20:15:00"]
[{"$nulls":4},"20:30:00"]
[{"$nulls":4},"20:45:00"]
[{"$nulls":4},"21:00:00"]
[{"$nulls":4},""]
[{"$nulls":4},""]
[{"$nulls":4},""]
[{"$nulls":4},""]
[{"$nulls":4},{"$f":"IFERROR(IF($E67+Prirastek>ČasKonca,\"\",$E67+Prirastek),\"\")","v":""}]
[{"$nulls":4},""]
[{"$nulls":4},""]
[{"$nulls":4},""]
[{"$nulls":4},""]
[{"$nulls":4},""]
[{"$nulls":4},""]
[{"$nulls":4},""]